bitfinex/quotes_ETHUSD_20250526
["timestamp","ask_amount","ask_price","bid_price","bid_amount"]
[1748255771818,1.55981906,2564.4,2564.3,0.8185]
[1748255772028,1.55993035,2564.3,2563.9,0.8046]
[1748255772170,1.56002939,2564.1,2563.9,0.8046]
[1748255772481,1.5599681,2564.2,2563.9,0.8046]
[1748255773383,8.0,2564.5,2563.9,0.8046]
[1748255773585,1.55997373,2564.2,2563.9,0.8046]
[1748255778622,9.55991698,2564.3,2563.9,0.8046]
[1748255778985,1.55994125,2564.2,2563.9,0.8046]
[1748255781816,1.56000835,2564.1,2563.9,0.8046]
[1748255782034,1.55995902,2564.2,2563.9,0.8046]
[1748255785819,1.56000743,2564.1,2563.9,0.8046]
[1748255785986,1.55996902,2564.2,2563.9,0.8046]
[1748255789425,1.56004419,2564.1,2563.9,0.8046]
[1748255790345,0.813,2564.3,2563.7,0.95487278]
[1748255790527,1.56015428,2563.9,2563.7,0.95487278]
[1748255792596,1.56015428,2563.9,2563.7,0.20287278]
[1748255794530,1.56002338,2564.1,2563.7,0.20287278]
[1748255794531,1.56008674,2564.0,2563.7,0.20287278]
[1748255795124,1.56013272,2563.9,2563.7,0.20287278]
[1748255797540,1.5601841,2563.8,2563.7,0.20287278]
[1748255798137,2.3215841,2563.8,2563.7,0.20287278]
[1748255798517,6.3535841,2563.8,2563.7,0.20287278]
[1748255803556,14.1435841,2563.8,2563.7,0.20287278]
[1748255805622,14.52741547,2563.8,2563.7,0.20287278]
[1748255821449,14.89189461,2563.8,2563.7,0.20287278]
[1748255827478,18.78989461,2563.8,2563.7,0.20287278]
[1748255827855,10.09849461,2563.8,2563.7,0.20287278]
[1748255828059,18.02849461,2563.8,2563.7,0.20287278]
[1748255830792,10.09849461,2563.8,2563.7,0.20287278]
[1748255832502,8.15447914,2563.8,2563.7,0.20287278]
[1748255832708,0.36447914,2563.8,2563.7,1.03427278]
[1748255833011,0.36447914,2563.8,2563.7,1.52778319]
[1748255833171,5.59213131,2563.9,2563.7,1.52778319]
[1748255834204,1.5601841,2563.8,2563.7,1.03427278]
[1748255835267,1.5601841,2563.8,2563.7,0.20287278]
[1748255843123,5.59215899,2563.9,2563.7,0.20287278]
[1748255844428,1.5601841,2563.8,2563.7,0.20287278]
[1748255855023,5.59215684,2563.9,2563.7,0.20287278]
[1748255855223,4.032,2563.9,2563.7,0.20287278]
[1748255855729,5.59214915,2563.9,2563.7,0.20287278]
[1748255856939,1.56014915,2563.9,2563.7,0.20287278]
[1748255858331,1.5601841,2563.8,2563.7,0.20287278]
[1748255896791,2.3117841,2563.8,2563.7,0.20287278]
[1748255897411,14.0145841,2563.8,2563.7,0.20287278]
[1748255897725,14.59883687,2563.8,2563.7,0.20287278]
[1748255898505,14.37974031,2563.8,2563.7,0.20287278]
[1748255901347,1.56054931,2563.2,2563.1,0.1]
[1748255901511,20.72694766,2563.2,2563.1,0.1]
[1748255902029,20.72694766,2563.2,2563.1,0.3029285]
[1748255904125,18.05134931,2563.2,2563.1,0.3029285]
[1748255908441,16.46448383,2563.2,2563.1,0.3029285]
[1748255908614,18.02503314,2563.2,2563.1,0.3029285]
[1748255910293,26.02503314,2563.2,2563.1,0.3029285]
[1748255910523,25.24923314,2563.2,2563.1,0.3029285]
[1748255911622,17.24923314,2563.2,2563.1,0.3029285]
[1748255915299,9.32423314,2563.2,2563.1,0.3029285]
[1748255915519,7.76368383,2563.2,2563.1,1.1342285]
[1748255916255,9.32423314,2563.2,2563.1,1.1342285]
[1748255916422,7.76368383,2563.7,2563.1,1.1342285]
[1748255916625,1.56049293,2563.3,2563.1,1.1342285]
[1748255917465,1.56054931,2563.2,2563.1,1.1342285]
[1748255927093,1.56052464,2563.3,2563.1,1.1342285]
[1748255928583,1.56054931,2563.2,2563.1,1.1342285]
[1748255929488,1.56052683,2563.3,2563.1,1.1342285]
[1748255930197,1.56054931,2563.2,2563.1,1.1342285]
[1748255930392,1.56045576,2563.4,2563.1,1.1342285]
[1748255930586,1.56045576,2563.4,2563.2,0.50357802]
[1748255930796,1.95476055,2563.5,2563.2,0.50357802]
[1748255930999,1.56046366,2563.4,2563.1,1.1342285]
[1748255933291,1.56050401,2563.3,2563.1,1.1342285]
[1748255941119,1.56046155,2563.4,2563.1,1.1342285]
[1748255941731,1.56049169,2563.3,2563.1,1.1342285]
[1748255942030,1.5604627,2563.4,2563.1,1.1342285]
[1748255942407,4.025,2563.6,2563.2,0.55]
[1748255942606,0.7935,2564.1,2563.4,0.55]
[1748255942931,1.56020995,2563.8,2563.4,0.55]
[1748255943818,1.56012832,2563.9,2563.4,4.45105726]
[1748255943819,1.56015508,2563.9,2563.4,4.45105726]
[1748255944133,1.56018473,2563.8,2563.4,4.45105726]
[1748255944309,1.56018473,2563.8,2563.5,1.38061239]
[1748255944509,1.56015973,2563.9,2563.5,1.38061239]
[1748255945320,1.56015973,2563.9,2563.6,0.8195]
[1748255945835,1.56007801,2564.0,2563.6,0.8195]
[1748255945836,1.56019443,2563.8,2563.6,0.8195]
[1748255949036,1.56015193,2563.9,2563.6,0.8195]
[1748255949239,1.56015193,2563.9,2563.7,0.22001124]
[1748255951344,1.5601841,2563.8,2563.7,0.22001124]
[1748255955633,1.5601841,2563.8,2563.6,0.8195]
[1748255955835,1.56024495,2563.7,2563.6,1.3695]
[1748255956521,1.56021621,2563.8,2563.6,1.3695]
[1748255961352,1.5601841,2563.8,2563.6,1.3695]
[1748255961557,1.56024457,2563.8,2563.6,1.3695]
[1748255961854,1.56024457,2563.8,2563.6,1.64451124]
[1748255962268,1.56024495,2563.7,2563.6,1.64451124]
[1748255963272,1.56024495,2563.7,2563.6,0.82501124]
[1748255966168,1.56024495,2563.7,2563.3,0.5585666]
[1748255966169,1.56030581,2563.6,2563.3,0.5585666]
[1748255966367,3.44982739,2563.6,2563.1,0.1]
[1748255966553,1.56054931,2563.2,2563.1,0.1]
[1748255967442,1.56052014,2563.3,2563.1,0.1]
[1748255967858,1.56054931,2563.2,2563.1,0.1]
[1748255969691,1.56052755,2563.3,2563.1,0.1]
[1748255970064,1.56046318,2563.4,2563.1,0.1]
[1748255972988,1.56043411,2563.4,2563.1,8.1]
[1748255973189,1.56043411,2563.4,2563.2,1.20016089]
[1748255975910,1.56043411,2563.4,2563.1,0.1]
[1748255977013,1.5604042,2563.5,2563.1,0.1]
[1748255980152,1.56033598,2563.6,2563.2,0.7817]
[1748255980331,1.56035993,2563.6,2563.2,0.7817]
[1748255980531,1.56037171,2563.5,2563.2,0.7817]
[1748255980746,1.56037171,2563.5,2563.2,1.65018012]
[1748255984253,5.58321005,2563.8,2563.4,3.90105327]
[1748255984422,9.32385466,2563.9,2563.5,4.73270981]
[1748255985456,7.76368383,2563.9,2563.6,4.45072694]
[1748255985648,7.76368383,2563.9,2563.6,0.55]
[1748255986258,9.3238087,2563.9,2563.6,0.55]
[1748255987774,9.3238105,2563.9,2563.6,0.55]
[1748255989071,1.56020095,2563.8,2563.6,0.55]
[1748255989474,1.56020095,2563.8,2563.6,1.17011763]
[1748255989771,1.56024495,2563.7,2563.5,1.75019258]
[1748255990077,1.56032399,2563.6,2563.4,0.55]
[1748255990279,1.56033704,2563.6,2563.4,0.55]
[1748255991238,1.56030598,2563.6,2563.4,0.55]
[1748255992474,1.5602794,2563.7,2563.4,0.55]
[1748255992673,1.5602794,2563.7,2563.4,1.98296523]
[1748255993078,1.56029541,2563.7,2563.4,9.98296523]
[1748255993286,1.56030581,2563.6,2563.4,1.43296523]
[1748255994349,2.35390581,2563.6,2563.3,0.20291991]
[1748255994570,0.7936,2563.6,2563.3,0.20291991]
[1748255994771,2.3539391,2563.6,2563.3,0.20291991]
[1748255995317,0.7936,2563.6,2563.3,8.20291991]
[1748255995495,6.36581382,2563.8,2563.4,1.2972754]
[1748255995820,6.36581382,2563.8,2563.3,12.10406323]
[1748255996403,6.36579982,2563.8,2563.4,8.0]
[1748255996697,5.58219982,2563.8,2563.4,12.72912783]
[1748255996896,5.58219982,2563.8,2563.4,0.8281]
[1748255997203,1.56019982,2563.8,2563.4,0.8281]
[1748255997495,5.58219982,2563.8,2563.4,2.59829279]
[1748255997699,1.56028069,2563.7,2563.4,1.77019279]
[1748256001003,5.58222077,2563.8,2563.4,5.67121147]
[1748256001177,4.022,2563.8,2563.5,3.9009132]
[1748256001597,4.022,2563.8,2563.4,5.67117846]
[1748256001780,4.022,2563.8,2563.5,1.77752562]
[1748256002315,4.022,2563.8,2563.5,5.67843938]
[1748256002518,7.76368383,2563.9,2563.6,0.7936]
[1748256002685,14.1739759,2564.3,2563.8,3.90033881]
[1748256002881,13.3445759,2564.3,2563.8,3.9003131]
[1748256003116,13.3445759,2564.3,2563.8,4.81476565]
[1748256004007,13.3445759,2564.3,2563.9,0.8169]
[1748256004318,7.76368383,2564.3,2564.0,4.45002901]
[1748256004516,5.58078687,2564.5,2564.0,4.45002901]
[1748256004695,5.58078687,2564.5,2564.0,0.55]
[1748256004696,1.55993015,2564.3,2564.0,0.55]
[1748256004885,4.021,2564.5,2564.1,0.93669]
[1748256005085,1.55985422,2564.4,2564.1,0.93669]
[1748256009429,1.55989954,2564.3,2564.1,0.93669]
[1748256009721,1.55986364,2564.4,2564.1,0.93669]
[1748256009926,1.55988334,2564.3,2564.1,0.93669]
[1748256012333,1.55985585,2564.4,2564.1,0.93669]
[1748256012828,1.55983071,2564.4,2564.1,0.93669]
[1748256013024,1.55983071,2564.4,2564.2,0.48367578]
[1748256013787,1.55983071,2564.4,2564.1,0.93669]
[1748256015090,1.55979078,2564.5,2564.2,0.8285]
[1748256016129,1.55985066,2564.4,2564.2,0.8285]
[1748256016930,1.55987988,2564.3,2564.2,0.8285]
[1748256017433,1.55985151,2564.4,2564.2,0.8285]
[1748256020138,1.55987988,2564.3,2564.2,0.8285]
[1748256022855,0.812,2564.5,2563.9,1.3747]
[1748256023057,0.812,2564.5,2563.8,1.73971343]
[1748256023058,1.56012324,2563.9,2563.8,0.82526088]
[1748256024818,1.56012324,2563.9,2563.8,0.2028747]
[1748256026920,1.55996692,2564.2,2563.8,0.2028747]
[1748256027155,5.5799057,2564.3,2563.9,0.7751]
[1748256027463,1.55999087,2564.2,2563.9,0.7751]
[1748256029145,1.56001138,2564.1,2563.9,0.7751]
[1748256030543,1.56001138,2564.1,2563.8,1.05828622]
[1748256031842,1.56005019,2564.1,2563.8,1.05828622]
[1748256033777,1.56005019,2564.1,2563.9,0.57905811]
[1748256034576,1.5600624,2564.0,2563.9,0.57905811]
[1748256034745,1.5600624,2564.0,2563.8,1.05828622]
[1748256034958,1.56003473,2564.1,2563.8,1.05828622]
[1748256037966,1.56004466,2564.1,2563.8,1.05828622]
[1748256039683,1.56012324,2563.9,2563.8,0.2028747]
[1748256040701,1.56008439,2564.0,2563.8,0.2028747]
[1748256044774,1.55991696,2564.3,2563.8,0.2028747]
[1748256044976,4.019,2564.2,2563.9,0.809]
[1748256045274,7.76368383,2564.4,2564.0,0.55]
[1748256045580,7.76368383,2564.4,2564.1,0.52592965]
[1748256046178,9.32351465,2564.4,2564.1,0.52592965]
[1748256047294,1.55988029,2564.3,2564.1,0.52592965]
[1748256049457,1.55988029,2564.3,2564.0,0.55]
[1748256053892,1.55987988,2564.3,2564.0,0.55]
[1748256054561,9.32353838,2564.4,2564.0,0.55]
[1748256055201,7.76368383,2564.4,2564.1,0.7973]
[1748256056456,9.32350636,2564.4,2564.1,0.7973]
[1748256056695,7.76368383,2564.4,2564.2,0.5247441]
[1748256057559,9.32350976,2564.4,2564.2,0.5247441]
[1748256058051,1.55982593,2564.4,2564.2,0.5247441]
[1748256059604,1.55982593,2564.4,2564.1,0.7973]
[1748256060712,1.55988923,2564.3,2564.1,0.7973]
[1748256061408,1.55988923,2564.3,2564.0,0.55]
[1748256061409,1.55987254,2564.4,2564.0,0.55]
[1748256062219,1.55989196,2564.3,2564.0,0.55]
[1748256062374,1.55985596,2564.4,2564.0,4.447]
[1748256062701,1.55985596,2564.4,2564.1,1.79560411]
[1748256063317,1.55988148,2564.3,2564.1,1.79560411]
[1748256063488,1.55986722,2564.4,2564.1,1.79560411]
[1748256066726,2.36839286,2564.5,2564.1,1.79560411]
[1748256066942,1.56000156,2564.1,2564.0,0.20302145]
[1748256067221,1.55999308,2564.2,2564.0,0.20302145]
[1748256067427,1.55990734,2564.3,2564.0,0.20302145]
[1748256067803,1.55982478,2564.4,2564.0,0.20302145]
[1748256068426,1.55991236,2564.3,2564.0,0.20302145]
[1748256069129,2.36839311,2564.5,2564.0,1.47526221]
[1748256069330,1.55979311,2564.5,2564.1,4.66207257]
[1748256069720,1.55974541,2564.6,2564.2,3.89985114]
[1748256069919,4.017,2564.7,2564.3,3.89966478]
[1748256070097,1.55964451,2564.7,2564.3,3.89963675]
[1748256070292,1.55964451,2564.7,2564.4,0.44496368]
[1748256070626,11.78068383,2564.8,2564.4,4.34444977]
[1748256070813,0.8045,2565.1,2564.5,4.66149274]
[1748256070988,5.57651458,2565.0,2564.5,4.66149274]
[1748256071199,1.55951578,2564.9,2564.5,4.66149274]
[1748256071531,1.55951578,2564.9,2564.6,0.51064564]
[1748256073697,4.017,2565.0,2564.6,0.51064564]
[1748256073902,0.7866,2564.8,2564.4,0.44496368]
[1748256074326,1.55963912,2564.7,2564.4,0.44496368]
[1748256074527,2.3462109,2564.8,2564.4,0.44496368]
[1748256075232,2.3462109,2564.8,2564.4,4.34450102]
[1748256075437,2.3462109,2564.8,2564.5,1.3156201]
[1748256075603,1.5596109,2564.8,2564.5,1.3156201]
[1748256078225,1.55962993,2564.8,2564.5,1.3156201]
[1748256080663,1.55967043,2564.7,2564.5,1.3156201]
[1748256080963,1.55962019,2564.8,2564.4,0.44496368]
[1748256081176,1.559679,2564.7,2564.4,0.44496368]
[1748256082374,1.55966065,2564.7,2564.4,0.44496368]
[1748256082677,1.55970331,2564.6,2564.4,0.44496368]
[1748256082882,1.55967855,2564.7,2564.4,0.44496368]
[1748256084375,1.55961058,2564.8,2564.5,0.51563548]
[1748256084667,1.55961058,2564.8,2564.6,0.7526]
[1748256085456,9.47248782,2565.0,2564.6,0.7526]
[1748256085457,4.017,2565.0,2564.6,0.7526]
[1748256085631,4.8335,2565.3,2564.7,0.55]
[1748256085838,1.55939975,2565.1,2564.7,4.44898733]
[1748256086040,1.55939975,2565.1,2564.8,0.52015873]
[1748256087279,1.55948199,2565.0,2564.8,0.52015873]
[1748256088601,1.55948199,2565.0,2564.7,0.55]
[1748256097724,1.5595441,2564.9,2564.7,0.55]
[1748256101936,6.39277471,2565.3,2564.7,0.55]
[1748256102154,1.55956909,2564.9,2564.7,0.55]
[1748256102501,1.55948168,2565.0,2564.6,0.7526]
[1748256102928,1.55954909,2564.9,2564.6,0.7526]
[1748256103133,1.55954909,2564.9,2564.6,2.51414554]
[1748256112651,1.55949135,2565.0,2564.6,2.51414554]
[1748256112853,0.8165,2565.3,2564.8,0.55]
[1748256113060,7.76368383,2565.4,2564.8,0.55]
[1748256113061,7.76368383,2565.4,2565.2,3.34127353]
[1748256113256,4.8298,2565.6,2565.2,3.34127353]
[1748256113257,5.57410252,2565.6,2565.2,3.34127353]
[1748256113570,5.57410252,2565.6,2565.1,4.67271227]
[1748256113725,5.57410252,2565.6,2565.1,6.25347303]
[1748256113923,5.57410252,2565.6,2565.1,2.35506076]
[1748256114255,5.57410252,2565.6,2565.2,3.89832384]
[1748256114432,1.55915199,2565.5,2565.1,6.25347819]
[1748256114833,1.55915199,2565.5,2565.1,2.35506076]
[1748256115160,1.55915199,2565.5,2565.2,0.95948927]
[1748256115361,1.55921733,2565.4,2565.2,0.95948927]
[1748256115558,1.55927182,2565.3,2565.2,0.95948927]
[1748256115869,1.55923593,2565.4,2565.1,0.7743]
[1748256118031,1.55917448,2565.5,2565.1,0.7743]
[1748256118229,7.76368383,2565.8,2565.2,3.89127353]
[1748256118472,1.55919492,2565.5,2565.2,0.55]
[1748256118641,1.55919492,2565.5,2565.3,0.93243]
[1748256120989,1.55912645,2565.6,2565.3,0.93243]
[1748256121284,1.5591584,2565.5,2565.3,0.93243]
[1748256123486,1.55910272,2565.6,2565.3,0.93243]
[1748256123989,1.55911352,2565.6,2565.4,0.772]
[1748256124133,1.55909361,2565.6,2565.4,1.72139755]
[1748256125065,4.49587226,2565.9,2565.4,1.72139755]
[1748256125370,1.55913229,2565.6,2565.4,0.772]
[1748256128577,1.55915026,2565.5,2565.4,0.772]
[1748256128752,1.55915026,2565.5,2565.3,0.93243]
[1748256133776,1.55910879,2565.6,2565.3,0.93243]
[1748256134372,1.55915367,2565.5,2565.3,0.93243]
[1748256135381,1.55921852,2565.4,2565.2,1.3161]
[1748256136358,0.7922,2565.7,2565.1,8.0]
[1748256136554,1.55931118,2565.3,2565.1,8.0]
[1748256136743,1.5593326,2565.2,2565.1,8.0]
[1748256136941,1.55943906,2565.1,2564.9,0.62238618]
[1748256137172,0.7757,2565.4,2564.9,8.0]
[1748256137482,1.55949797,2565.0,2564.8,0.8253125]
[1748256137646,1.55949797,2565.0,2564.8,1.94362106]
[1748256138297,1.55942888,2565.1,2564.8,1.94362106]
[1748256138476,1.55942888,2565.1,2564.8,1.32123488]
[1748256140391,1.5593586,2565.2,2564.8,1.32123488]
[1748256140891,1.55923916,2565.4,2564.9,4.72175295]
[1748256141186,1.55927358,2565.3,2565.0,0.93842614]
[1748256142051,5.57217676,2565.5,2565.0,0.93842614]
[1748256142245,1.55921103,2565.4,2565.0,0.93842614]
[1748256142597,1.55928165,2565.3,2565.0,0.93842614]
[1748256142751,1.55928165,2565.3,2565.1,0.56602549]
[1748256144402,1.55928165,2565.3,2565.0,0.93842614]
[1748256145809,1.55898037,2565.8,2565.4,0.7856]
[1748256145976,1.55907724,2565.7,2565.4,0.7856]
[1748256146466,1.55907724,2565.7,2565.4,2.38810696]
[1748256147380,1.55899604,2565.8,2565.4,2.38810696]
[1748256147557,1.5590339,2565.7,2565.4,2.38810696]
[1748256150276,1.5090339,2565.7,2565.4,2.38810696]
[1748256150584,1.55901144,2565.8,2565.4,2.38810696]
[1748256150882,1.55903323,2565.7,2565.4,2.38810696]
[1748256151072,1.65893395,2565.9,2565.5,0.96274871]
[1748256151269,1.65893395,2565.9,2565.4,2.38810696]
[1748256151573,1.55896796,2565.8,2565.4,2.38810696]
[1748256152302,1.6589255,2565.9,2565.2,8.62238618]
[1748256152600,1.55924977,2565.4,2565.2,0.62238618]
[1748256152960,1.55918706,2565.5,2565.2,0.62238618]
[1748256153200,1.55918706,2565.5,2565.1,13.27697732]
[1748256154699,1.55918706,2565.5,2565.1,13.27698075]
[1748256157872,2.31645491,2565.7,2565.1,13.27698075]
[1748256157873,1.55922321,2565.4,2565.2,9.79972844]
[1748256158071,1.55922321,2565.4,2565.1,9.3785]
[1748256158273,1.55923794,2565.4,2565.1,8.0]
[1748256158570,1.55915026,2565.5,2565.1,8.0]
[1748256158770,1.55920505,2565.5,2565.1,8.0]
[1748256158993,1.55920505,2565.5,2565.1,9.68776088]
[1748256160909,1.55920505,2565.5,2565.1,5.58623882]
[1748256162115,1.55920505,2565.5,2565.1,1.68776088]
[1748256162814,1.55922323,2565.4,2565.1,1.68776088]
[1748256164333,1.55916826,2565.5,2565.0,8.20291745]
[1748256164618,1.5592581,2565.4,2565.0,8.20291745]
[1748256164916,2.31646729,2565.7,2565.0,8.20291745]
[1748256165120,1.55930341,2565.3,2565.0,8.20291745]
[1748256165302,1.55933619,2565.2,2565.0,8.20291745]
[1748256165631,1.55939339,2565.1,2565.0,0.20291745]
[1748256167108,1.55930059,2565.3,2565.0,0.20291745]
[1748256167279,1.55936012,2565.2,2565.0,0.20291745]
[1748256171526,1.55939339,2565.1,2565.0,0.20291745]
[1748256175748,1.55936666,2565.2,2565.0,0.20291745]
[1748256181040,1.55923208,2565.4,2565.0,0.20291745]
[1748256181228,1.55923208,2565.4,2565.1,0.8029]
[1748256182826,1.55927614,2565.3,2565.1,0.8029]
[1748256183340,0.36448702,2565.6,2565.1,1.29335159]
[1748256183341,1.55924721,2565.4,2565.1,1.29335159]
[1748256184168,8.59198383,2565.7,2565.1,1.29335159]
[1748256184334,1.55918228,2565.5,2565.1,1.29335159]
[1748256186046,1.55921808,2565.4,2565.1,1.29335159]
[1748256186871,8.59198383,2565.7,2565.1,1.29335159]
[1748256187175,8.59198383,2565.7,2565.1,0.8029]
[1748256187528,1.55920233,2565.5,2565.1,0.8029]
[1748256189163,1.55912156,2565.6,2565.1,4.70135698]
[1748256189366,1.55912156,2565.6,2565.2,3.89832648]
[1748256189931,1.65894352,2565.9,2565.3,4.69114838]
[1748256190276,1.55905912,2565.7,2565.4,0.80324219]
[1748256194877,1.55909171,2565.6,2565.4,0.80324219]
[1748256205171,1.55915026,2565.5,2565.4,0.80324219]
[1748256205871,1.55912347,2565.6,2565.4,0.80324219]
[1748256206505,1.55899466,2565.8,2565.4,0.80324219]
[1748256206705,1.55905948,2565.7,2565.4,0.80324219]
[1748256206864,1.55905948,2565.7,2565.5,0.93893545]
[1748256208320,0.1,2565.9,2565.6,3.34127353]
[1748256208511,0.1,2565.9,2565.7,0.03897463]
[1748256208718,0.1,2565.9,2565.6,4.15597353]
[1748256208903,0.1,2565.9,2565.6,8.05367486]
[1748256209103,0.1,2565.9,2565.7,1.28904129]
[1748256211382,0.1,2565.9,2565.8,0.7602]
[1748256212091,1.6589072,2565.9,2565.8,0.7602]
[1748256212296,0.1,2565.9,2565.8,0.7602]
[1748256214628,1.6589072,2565.9,2565.8,0.7602]
[1748256214823,0.1,2565.9,2565.8,1.68865148]
[1748256215320,1.6589072,2565.9,2565.8,0.92845148]
[1748256215524,0.1,2565.9,2565.8,5.64382501]
[1748256216383,0.1,2565.9,2565.8,2.30255148]
[1748256216784,0.1,2565.9,2565.8,1.75255148]
[1748256217007,0.1,2565.9,2565.8,0.92845148]
[1748256218683,0.1,2565.9,2565.8,13.37587138]
[1748256218892,0.1,2565.9,2565.8,14.19017138]
[1748256222059,0.1,2565.9,2565.8,14.81255756]
[1748256223773,0.1,2565.9,2565.8,14.19017138]
[1748256224154,0.1,2565.9,2565.8,18.08317138]
[1748256225054,0.1,2565.9,2565.8,0.92845148]
[1748256225250,0.1,2565.9,2565.8,0.62238618]
[1748256225449,0.1,2565.9,2565.8,4.51538618]
[1748256225750,1.6589072,2565.9,2565.8,0.62238618]
[1748256226331,1.55896796,2565.8,2565.7,3.893]
[1748256227340,1.65893922,2565.9,2565.7,5.14453862]
[1748256228293,0.1,2565.9,2565.8,1.3808]
[1748256228593,0.1,2565.9,2565.8,3.89127353]
[1748256230892,1.6589072,2565.9,2565.8,3.89127353]
[1748256231193,0.1,2565.9,2565.7,5.14904953]
[1748256231356,0.1,2565.9,2565.8,7.23527353]
[1748256231759,0.1,2565.9,2565.8,3.894]
[1748256231956,1.65895055,2565.9,2565.8,3.894]
[1748256232253,1.65895055,2565.9,2565.7,11.894]
[1748256233196,0.1,2565.9,2565.7,15.23527353]
[1748256233502,0.1,2565.9,2565.8,1.91329332]
[1748256240303,0.1,2565.9,2565.7,7.23527353]
[1748256241104,0.1,2565.9,2565.7,3.34127353]
[1748256241335,0.1,2565.9,2565.6,0.62238618]
[1748256241493,1.55902872,2565.7,2565.6,0.62238618]
[1748256242080,1.55921103,2565.4,2565.3,0.62238618]
[1748256242309,2.33351103,2565.4,2565.3,0.62238618]
[1748256242993,2.33351103,2565.4,2565.1,0.20297303]
[1748256242994,1.5593326,2565.2,2565.1,0.20297303]
[1748256243236,2.3249326,2565.2,2565.1,0.20297303]
[1748256255245,1.5593326,2565.2,2565.1,0.20297303]
[1748256257721,1.559215,2565.4,2565.2,0.7987]
[1748256258852,1.55923496,2565.4,2565.2,0.7987]
[1748256259055,7.76368383,2565.5,2565.2,0.7987]
[1748256259249,1.55927182,2565.3,2565.2,0.7987]
[1748256259460,1.5592286,2565.4,2565.2,1.62249466]
[1748256262135,9.32283858,2565.5,2565.2,1.62249466]
[1748256262541,1.55921324,2565.4,2565.2,1.62249466]
[1748256262741,1.55927182,2565.3,2565.2,1.62249466]
[1748256263472,1.55927182,2565.3,2565.2,0.7987]
[1748256265646,1.5593326,2565.2,2565.1,0.20297303]
[1748256267681,1.55930864,2565.3,2565.1,0.20297303]
[1748256269399,0.8075,2565.5,2565.1,0.20297303]
[1748256270092,1.5593326,2565.2,2565.1,0.20297303]
[1748256270290,1.559308,2565.3,2565.1,0.20297303]
[1748256270498,1.5593326,2565.2,2565.1,0.20297303]
[1748256272385,1.559308,2565.3,2565.1,0.20297303]
[1748256273188,1.55924314,2565.4,2565.1,0.20297303]
[1748256273361,1.55927578,2565.3,2565.1,0.20297303]
[1748256273567,1.55927578,2565.3,2565.1,1.08075276]
[1748256278483,1.55923649,2565.4,2565.1,1.08075276]
[1748256283160,1.55927206,2565.3,2565.1,1.08075276]
[1748256287967,1.55923808,2565.4,2565.1,1.08075276]
[1748256288178,1.55923808,2565.4,2565.1,0.20297303]
[1748256288908,1.55930536,2565.3,2565.1,0.20297303]
[1748256289613,1.5593326,2565.2,2565.1,0.20297303]
[1748256291610,1.5593326,2565.2,2565.1,4.78251848]
[1748256297809,1.23004823,2565.8,2565.2,0.7529]
[1748256297983,1.55924238,2565.4,2565.2,0.7529]
[1748256298310,1.55927182,2565.3,2565.2,0.7529]
[1748256298476,1.55927182,2565.3,2565.2,1.70280782]
[1748256298871,1.55924477,2565.4,2565.2,1.70280782]
[1748256299109,1.55927182,2565.3,2565.2,1.70280782]
[1748256299309,1.23004823,2565.8,2565.2,1.70280782]
[1748256299621,1.55924559,2565.4,2565.2,0.7529]
[1748256300486,11.89568383,2565.9,2565.3,7.23627353]
[1748256300798,1.55898615,2565.8,2565.5,4.12647353]
[1748256301112,11.89568383,2565.9,2565.8,3.8974199]
[1748256301113,0.1,2565.9,2565.8,3.8974199]
[1748256301271,0.1,2565.9,2565.8,0.7555]
[1748256301470,0.1,2565.9,2565.8,6.39184721]
[1748256301911,0.1,2565.9,2565.8,14.39184721]
[1748256302501,0.1,2565.9,2565.8,15.01423339]
[1748256303315,0.1,2565.9,2565.8,14.39184721]
[1748256306018,0.1,2565.9,2565.8,10.49442731]
[1748256306514,0.1,2565.9,2565.8,9.18892731]
[1748256306814,0.1,2565.9,2565.8,13.08292731]
[1748256313828,0.1,2565.9,2565.8,16.98034721]
[1748256314626,0.1,2565.9,2565.8,17.74054721]
[1748256317114,0.1,2565.9,2565.8,18.29054721]
[1748256322618,0.1,2565.9,2565.8,14.39654721]
[1748256322798,0.1,2565.9,2565.8,14.39212731]
[1748256325447,0.1,2565.9,2565.8,9.94912731]
[1748256325752,0.1,2565.9,2565.8,13.84212731]
[1748256329548,0.1,2565.9,2565.8,9.18892731]
[1748256329737,0.1,2565.9,2565.8,13.08192731]
[1748256331575,0.1,2565.9,2565.8,9.18892731]
[1748256331760,0.1,2565.9,2565.8,13.08192731]
[1748256332051,0.1,2565.9,2565.8,13.70431349]
[1748256338195,0.1,2565.9,2565.8,17.60173339]
[1748256338878,0.1,2565.9,2565.8,13.70431349]
[1748256339181,0.1,2565.9,2565.8,9.81131349]
[1748256339979,0.1,2565.9,2565.8,9.18892731]
[1748256340992,1.6589072,2565.9,2565.8,8.0]
[1748256341159,1.6589072,2565.9,2565.7,0.62238618]
[1748256341160,1.55896796,2565.8,2565.7,0.62238618]
[1748256342078,1.55896796,2565.8,2565.5,8.82530293]
[1748256343612,1.55902891,2565.7,2565.5,8.20291675]
[1748256343816,1.55899934,2565.8,2565.6,1.27183029]
[1748256346301,0.1,2565.9,2565.6,1.27183029]
[1748256346632,1.55902872,2565.7,2565.5,8.20291675]
[1748256349005,1.55900524,2565.8,2565.5,8.20291675]
[1748256349164,0.1,2565.9,2565.6,4.14887353]
[1748256349366,1.65890851,2565.9,2565.6,4.14887353]
[1748256349668,1.55904259,2565.7,2565.5,0.20291675]
[1748256349982,1.55908615,2565.7,2565.5,0.20291675]
[1748256350964,1.55908949,2565.6,2565.5,0.20291675]
[1748256351770,2.38908949,2565.6,2565.5,0.20291675]
[1748256375507,1.55908949,2565.6,2565.5,0.20291675]
[1748256383129,2.32278949,2565.6,2565.5,0.20291675]
[1748256383667,18.08647332,2565.6,2565.5,0.20291675]
[1748256384220,18.45133578,2565.6,2565.5,0.20291675]
[1748256384625,21.79260931,2565.6,2565.5,0.20291675]
[1748256385469,13.79260931,2565.6,2565.5,0.20291675]
[1748256387263,14.34633578,2565.6,2565.5,0.20291675]
[1748256396276,18.36233578,2565.6,2565.5,0.20291675]
[1748256398374,14.46733578,2565.6,2565.5,0.20291675]
[1748256398581,18.36233578,2565.6,2565.5,0.20291675]
[1748256403394,17.59863578,2565.6,2565.5,0.20291675]
[1748256407990,13.58263578,2565.6,2565.5,0.20291675]
[1748256412200,9.68763578,2565.6,2565.5,0.20291675]
[1748256421042,1.92395195,2565.6,2565.5,0.20291675]
[1748256421188,1.92395195,2565.6,2565.5,0.56890879]
[1748256421388,1.55908949,2565.6,2565.5,0.56890879]
[1748256423299,1.55908949,2565.6,2565.5,0.20291675]
[1748256431769,1.55904248,2565.7,2565.5,0.20291675]